bitfinex-derivatives/quotes_BTCF0:USTF0_20250728
["timestamp","ask_amount","ask_price","bid_price","bid_amount"]
[1753716725504,0.04729,118580.0,118570.0,1.51264212]
[1753716725707,0.04729,118580.0,118570.0,1.51464212]
[1753716725908,0.04729,118590.0,118570.0,1.30379902]
[1753716726120,0.04729,118590.0,118580.0,0.70425921]
[1753716726309,0.48096,118590.0,118580.0,0.7258547]
[1753716727218,0.48096,118590.0,118580.0,0.76076581]
[1753716728314,0.005,118600.0,118580.0,0.63426991]
[1753716728619,0.48596,118600.0,118590.0,0.96090762]
[1753716728818,0.48596,118600.0,118590.0,1.0016607]
[1753716729718,0.48596,118600.0,118590.0,1.0036607]
[1753716730114,0.48596,118600.0,118590.0,0.57196428]
[1753716731722,0.48596,118600.0,118590.0,0.90423868]
[1753716732424,0.91765642,118600.0,118590.0,0.21239868]
[1753716732822,0.91765642,118600.0,118590.0,0.90415868]
[1753716733023,0.48596,118600.0,118590.0,0.90415868]
[1753716733224,0.48596,118600.0,118590.0,1.3358551]
[1753716733611,0.05229,118600.0,118590.0,0.90415868]
[1753716733817,0.05229,118600.0,118590.0,1.3358551]
[1753716734020,0.2566,118600.0,118590.0,1.3358551]
[1753716734224,0.48596,118600.0,118590.0,1.3358551]
[1753716734827,0.05229,118600.0,118590.0,1.35832095]
[1753716736231,0.05229,118600.0,118590.0,1.36591879]
[1753716736927,0.005,118600.0,118590.0,1.36591879]
[1753716737131,0.05229,118600.0,118590.0,1.36591879]
[1753716738029,0.005,118600.0,118590.0,1.36591879]
[1753716738629,0.05229,118600.0,118590.0,1.36591879]
[1753716740225,0.05229,118600.0,118590.0,1.41124489]
[1753716741033,0.05229,118600.0,118590.0,1.41100489]
[1753716741233,0.05229,118600.0,118590.0,1.3809412]
[1753716742334,0.005,118600.0,118590.0,1.3809412]
[1753716743136,0.00453893,118600.0,118590.0,1.3809412]
[1753716743334,0.05410893,118600.0,118590.0,1.3809412]
[1753716744934,0.05410893,118600.0,118590.0,1.6504412]
[1753716747331,0.25025893,118600.0,118590.0,0.9135951]
[1753716747531,0.48571893,118600.0,118590.0,1.21828136]
[1753716747738,0.91741535,118600.0,118590.0,1.21824136]
[1753716750333,0.91741535,118600.0,118590.0,0.52704136]
[1753716750735,0.91741535,118600.0,118590.0,1.21820136]
[1753716750936,0.91741535,118600.0,118590.0,0.94870136]
[1753716751438,1.08604805,118600.0,118590.0,0.25754136]
[1753716751639,0.91741535,118600.0,118590.0,0.94870136]
[1753716753240,0.91741535,118600.0,118590.0,0.25754136]
[1753716753843,0.91741535,118600.0,118590.0,0.92946377]
[1753716754041,1.08604805,118600.0,118590.0,0.92946377]
[1753716754437,0.91741535,118600.0,118590.0,0.92946377]
[1753716755042,1.08604805,118600.0,118590.0,0.23838377]
[1753716755239,1.08604805,118600.0,118590.0,0.95962922]
[1753716755741,1.58604805,118600.0,118590.0,0.95962922]
[1753716755941,1.58604805,118600.0,118590.0,0.91448654]
[1753716755942,1.43205062,118600.0,118590.0,0.91448654]
[1753716756646,1.60068332,118600.0,118590.0,0.91448654]
[1753716756840,1.60068332,118600.0,118590.0,0.22340654]
[1753716757141,1.60068332,118600.0,118590.0,0.91448654]
[1753716757332,2.03237974,118600.0,118590.0,0.22340784]
[1753716757745,1.60068332,118600.0,118590.0,0.22340784]
[1753716758441,2.03237974,118600.0,118590.0,0.22340784]
[1753716759953,2.03237974,118600.0,118590.0,0.24602699]
[1753716760341,2.01774447,118600.0,118590.0,0.24602699]
[1753716761240,3.14197449,118600.0,118590.0,0.04721464]
[1753716761445,0.649827,118590.0,118580.0,0.26359344]
[1753716761743,1.09615223,118590.0,118580.0,0.23342799]
[1753716762642,1.09615223,118590.0,118580.0,0.23542799]
[1753716762842,1.09615223,118590.0,118580.0,0.2128108]
[1753716763043,1.09615223,118590.0,118580.0,0.2138108]
[1753716763643,1.09615223,118590.0,118580.0,0.2118108]
[1753716764240,1.59615223,118590.0,118580.0,0.2118108]
[1753716766042,1.59615223,118590.0,118580.0,0.169647]
[1753716767245,1.59615223,118590.0,118580.0,0.001]
[1753716767946,1.59615223,118590.0,118580.0,0.1696612]
[1753716770951,1.59615223,118590.0,118580.0,0.2168812]
[1753716771250,1.59615223,118590.0,118580.0,0.1696612]
[1753716771949,1.59615223,118590.0,118580.0,0.001]
[1753716773353,1.59615223,118590.0,118580.0,0.1696612]
[1753716776753,1.59615223,118590.0,118580.0,0.001]
[1753716777451,1.59615223,118590.0,118580.0,0.1696612]
[1753716777853,1.59615223,118590.0,118580.0,0.001]
[1753716778857,1.59615223,118590.0,118580.0,0.02244968]
[1753716779057,1.59615223,118590.0,118580.0,0.19111088]
[1753716779252,1.59615223,118590.0,118580.0,0.02244968]
[1753716780261,1.59615223,118590.0,118580.0,0.19111088]
[1753716780464,1.59615223,118590.0,118580.0,0.02244968]
[1753716780753,0.6425054,118570.0,118560.0,0.03016545]
[1753716780958,0.6425054,118570.0,118550.0,0.38933547]
[1753716780959,0.3602596,118560.0,118550.0,0.38933547]
[1753716781165,1.07421602,118560.0,118550.0,0.37477716]
[1753716781663,1.07421602,118560.0,118550.0,0.34461171]
[1753716781855,1.07421602,118560.0,118550.0,0.30243651]
[1753716782054,1.57421602,118560.0,118550.0,0.30643651]
[1753716782256,1.57421602,118560.0,118550.0,0.42920651]
[1753716782960,1.40552642,118560.0,118550.0,0.42920651]
[1753716783257,1.57421602,118560.0,118550.0,0.42920651]
[1753716783868,1.40552642,118560.0,118550.0,0.42920651]
[1753716784164,1.57421602,118560.0,118550.0,0.42920651]
[1753716784366,1.57421602,118560.0,118550.0,0.43220651]
[1753716784557,1.17218642,118560.0,118550.0,0.43220651]
[1753716784757,1.40552642,118560.0,118550.0,0.43220651]
[1753716784960,1.57421602,118560.0,118550.0,0.499778]
[1753716785258,1.40552642,118560.0,118550.0,0.499778]
[1753716785460,0.74049,118560.0,118550.0,0.52994345]
[1753716785665,0.97383,118560.0,118550.0,0.52994345]
[1753716785870,0.90552642,118560.0,118550.0,0.52994345]
[1753716786356,0.04892,118560.0,118550.0,0.96163987]
[1753716786557,0.04892,118560.0,118550.0,1.00678255]
[1753716787161,0.08185,118570.0,118560.0,0.1598907]
[1753716787358,0.04892,118570.0,118560.0,1.13848725]
[1753716788756,0.04892,118570.0,118560.0,1.14048725]
[1753716789060,0.04892,118570.0,118560.0,1.57218367]
[1753716789260,0.04892,118570.0,118560.0,1.57418367]
[1753716789460,0.04892,118570.0,118560.0,1.61932635]
[1753716790064,0.04892,118570.0,118560.0,1.5892108]
[1753716791767,0.04892,118570.0,118560.0,1.54406812]
[1753716792671,0.04892,118570.0,118560.0,1.5653432]
[1753716794176,0.04892,118570.0,118560.0,1.625778]
[1753716794568,0.43169642,118590.0,118580.0,0.1686612]
[1753716794775,0.92052001,118590.0,118580.0,1.00282628]
[1753716794968,0.92052001,118590.0,118580.0,0.31270628]
[1753716795175,0.92052001,118590.0,118580.0,1.00282628]
[1753716795376,0.48882359,118590.0,118580.0,1.00282628]
[1753716795577,0.92052001,118590.0,118580.0,1.00282628]
[1753716798078,0.92152001,118590.0,118580.0,1.00282628]
[1753716799083,0.90652642,118590.0,118580.0,1.03297315]
[1753716800086,0.90552642,118590.0,118580.0,1.03397315]
[1753716800485,0.90552642,118590.0,118580.0,1.03497315]
[1753716801090,0.47383,118590.0,118580.0,1.03497315]
[1753716801296,0.90552642,118590.0,118580.0,1.03497315]
[1753716805793,0.47383,118590.0,118580.0,1.03497315]
[1753716805995,0.90552642,118590.0,118580.0,1.03497315]
[1753716806593,0.90552642,118590.0,118580.0,0.34485315]
[1753716806796,0.90552642,118590.0,118580.0,1.03461315]
[1753716807190,0.90552642,118590.0,118580.0,0.34485315]
[1753716807488,0.90552642,118590.0,118580.0,1.03453315]
[1753716807795,0.90552642,118590.0,118580.0,1.03449315]
[1753716810694,0.47383,118590.0,118580.0,1.03449315]
[1753716811293,0.47527,118590.0,118580.0,1.03449315]
[1753716814298,0.47527,118590.0,118580.0,1.07971345]
[1753716814600,0.90696642,118590.0,118580.0,1.07971345]
[1753716816405,0.90696642,118590.0,118580.0,1.04956658]
[1753716816593,0.90696642,118590.0,118580.0,1.07972825]
[1753716817298,0.90696642,118590.0,118580.0,1.07940825]
[1753716818501,0.90696642,118590.0,118580.0,1.07936825]
[1753716819404,0.90696642,118590.0,118580.0,1.04920658]
[1753716820905,0.90696642,118590.0,118580.0,0.35992658]
[1753716821202,0.47527,118590.0,118580.0,1.04912658]
[1753716821506,0.90696642,118590.0,118580.0,1.04908658]
[1753716822206,0.47527,118590.0,118580.0,1.04908658]
[1753716822408,0.90696642,118590.0,118580.0,1.04908658]
[1753716824605,0.90696642,118590.0,118580.0,1.04904658]
[1753716824903,0.92191126,118590.0,118580.0,1.04904658]
[1753716827308,0.92191126,118590.0,118580.0,0.35992658]
[1753716827509,0.92191126,118590.0,118580.0,1.04888658]
[1753716830005,0.92191126,118590.0,118580.0,1.00166658]
[1753716830308,1.09055826,118590.0,118580.0,0.97329658]
[1753716830511,0.92191126,118590.0,118580.0,0.97329658]
[1753716831211,0.92191126,118590.0,118580.0,1.04884658]
[1753716831403,0.49021484,118590.0,118580.0,1.04884658]
[1753716831709,0.92191126,118590.0,118580.0,1.04884658]
[1753716833511,0.92191126,118590.0,118580.0,0.35992658]
[1753716833811,0.92191126,118590.0,118580.0,1.04872658]
[1753716834613,0.92191126,118590.0,118580.0,0.35992658]
[1753716834817,0.92191126,118590.0,118580.0,1.04868658]
[1753716835313,0.92191126,118590.0,118580.0,0.35992658]
[1753716835513,0.92191126,118590.0,118580.0,1.04864658]
[1753716840214,0.92191126,118590.0,118580.0,0.35992658]
[1753716840421,0.92191126,118590.0,118580.0,1.04844658]
[1753716841120,0.92191126,118590.0,118580.0,0.35992658]
[1753716841322,0.92191126,118590.0,118580.0,1.04844658]
[1753716843321,0.92191126,118590.0,118580.0,1.04836658]
[1753716844019,0.41702484,118590.0,118580.0,1.480063]
[1753716844224,0.48900484,118590.0,118580.0,1.480063]
[1753716845419,0.48900484,118590.0,118580.0,1.479063]
[1753716845620,0.48900484,118590.0,118580.0,1.481063]
[1753716846724,0.48900484,118590.0,118580.0,1.04936658]
[1753716847314,0.48900484,118590.0,118580.0,1.00414628]
[1753716847514,0.47406,118590.0,118580.0,1.00414628]
[1753716848123,0.47406,118590.0,118580.0,1.4358427]
[1753716848124,0.08115,118590.0,118580.0,1.4358427]
[1753716848327,0.08115,118590.0,118580.0,0.7474027]
[1753716848520,0.08115,118590.0,118580.0,1.4356427]
[1753716849321,0.04892,118590.0,118580.0,1.4356427]
[1753716849527,0.04892,118590.0,118580.0,1.4960775]
[1753716849926,0.04892,118590.0,118580.0,1.47480242]
[1753716850129,0.04892,118590.0,118580.0,1.49611597]
[1753716850725,0.04892,118590.0,118580.0,1.49607597]
[1753716851426,0.04892,118590.0,118580.0,1.49603597]
[1753716854631,0.04892,118590.0,118580.0,1.43560117]
[1753716855932,0.04892,118590.0,118580.0,1.49603597]
[1753716856829,0.04892,118590.0,118580.0,1.70992783]
[1753716857233,0.04892,118590.0,118580.0,1.38713369]
[1753716857433,0.37171414,118590.0,118580.0,1.70968783]
[1753716858136,0.37171414,118590.0,118580.0,0.69897369]
[1753716858435,0.79390414,118590.0,118580.0,1.32637889]
[1753716858828,0.79390414,118590.0,118580.0,1.00358475]
[1753716859024,0.79390414,118590.0,118580.0,1.32637889]
[1753716860231,0.79390414,118590.0,118580.0,1.38681369]
[1753716860634,0.79390414,118590.0,118580.0,1.06401955]
[1753716860833,0.90158604,118590.0,118580.0,1.06401955]
[1753716861029,1.07023294,118590.0,118580.0,0.02431355]
[1753716861237,1.07023294,118590.0,118580.0,0.06958762]
[1753716861534,0.3607554,118570.0,118560.0,0.28971024]
[1753716861737,1.06804144,118570.0,118560.0,0.99883984]
[1753716861932,1.06804144,118570.0,118560.0,0.31115984]
[1753716862236,1.06804144,118570.0,118560.0,0.99883984]
[1753716862637,1.06804144,118570.0,118560.0,0.31115984]
[1753716862937,1.06804144,118570.0,118560.0,1.04605984]
[1753716863137,1.06804144,118570.0,118560.0,0.33693024]
[1753716863338,1.06804144,118570.0,118560.0,1.02457024]
[1753716863636,1.06804144,118570.0,118560.0,1.09416024]
[1753716863831,1.06804144,118570.0,118560.0,0.40652024]
[1753716864137,1.06804144,118570.0,118560.0,1.02453024]
[1753716864532,0.3653496,118560.0,118550.0,0.41163376]
[1753716864839,1.51444168,118560.0,118550.0,0.38470273]
[1753716865138,1.51444168,118560.0,118550.0,0.30902346]
[1753716865326,1.51444168,118560.0,118550.0,0.26684956]
[1753716865636,1.51444168,118560.0,118550.0,0.32723105]
[1753716865940,1.51444168,118560.0,118550.0,0.33023105]
[1753716866135,1.08396564,118560.0,118550.0,0.33023105]
[1753716866436,1.51444168,118560.0,118550.0,0.32268652]
[1753716866637,1.51444168,118560.0,118550.0,0.03318672]
[1753716866836,1.51444168,118560.0,118550.0,0.05582763]
[1753716867632,1.51444168,118560.0,118550.0,0.02564091]
[1753716867831,2.71682601,118560.0,118550.0,0.1717039]
[1753716868133,2.71682601,118560.0,118550.0,0.003]
[1753716868533,2.71682601,118560.0,118550.0,0.1717039]
[1753716868837,2.71682601,118560.0,118550.0,0.003]
[1753716869037,2.71682601,118560.0,118550.0,0.1717039]
[1753716869236,2.88552201,118560.0,118550.0,0.003]
[1753716869438,0.4856139,118550.0,118540.0,0.29813145]
[1753716869637,1.08397994,118550.0,118540.0,0.25595245]
[1753716869837,1.08397994,118550.0,118540.0,0.23331154]
[1753716870633,1.58397994,118550.0,118540.0,0.23531154]
[1753716871438,1.58397994,118550.0,118540.0,0.23831154]
[1753716872242,1.58397994,118550.0,118540.0,0.1737078]
[1753716872541,1.58397994,118550.0,118540.0,0.005]
[1753716872943,1.58397994,118550.0,118540.0,0.1737181]
[1753716873342,1.58397994,118550.0,118540.0,0.005]
[1753716873542,1.58397994,118550.0,118540.0,0.1737181]
[1753716875245,1.58397994,118550.0,118540.0,0.005]
[1753716875544,1.58397994,118550.0,118540.0,0.1737181]
[1753716875844,1.58397994,118550.0,118540.0,0.005]
[1753716876045,1.58397994,118550.0,118540.0,0.1737181]
[1753716876451,1.58397994,118550.0,118540.0,0.005]
[1753716881749,1.75269194,118550.0,118540.0,0.005]
[1753716882957,1.75269194,118550.0,118540.0,0.1737181]
[1753716884355,1.75269194,118550.0,118540.0,0.005]
[1753716885259,1.76840247,118550.0,118540.0,0.005]
[1753716886258,1.76840247,118550.0,118540.0,0.1737181]
[1753716886656,1.76840247,118550.0,118540.0,0.005]
[1753716886962,1.76840247,118550.0,118540.0,0.1737181]
[1753716887158,1.59969047,118550.0,118540.0,0.1737181]
[1753716888362,1.59969047,118550.0,118540.0,0.005]
[1753716892663,1.59883963,118550.0,118540.0,0.005]
[1753716894668,1.62123824,118550.0,118540.0,0.005]
[1753716894863,1.62123824,118550.0,118540.0,0.004]
[1753716895370,1.62123824,118550.0,118540.0,0.02152832]
[1753716895564,1.62123824,118550.0,118540.0,0.001]
[1753716895963,0.1687466,118520.0,118510.0,0.20683044]
[1753716896168,1.50455868,118520.0,118510.0,0.37065912]
[1753716896365,1.52034485,118520.0,118510.0,0.37065912]
[1753716896669,1.52034485,118520.0,118510.0,0.46399912]
[1753716896869,1.52034485,118520.0,118510.0,0.56543912]
[1753716897573,2.02134485,118520.0,118510.0,0.56843912]
[1753716897871,2.02134485,118520.0,118510.0,0.57143912]
[1753716898473,2.02034485,118520.0,118510.0,0.56543912]
[1753716899172,2.02034485,118520.0,118510.0,0.55754184]
[1753716900377,1.58986881,118520.0,118510.0,0.63309184]
[1753716900566,1.58986881,118520.0,118510.0,0.65451184]
[1753716900875,0.51578617,118520.0,118510.0,1.1151746]
[1753716901077,0.01578617,118520.0,118510.0,1.16022102]
[1753716901376,0.06406617,118520.0,118510.0,0.72974498]
[1753716902778,0.47875604,118520.0,118510.0,0.72974498]
[1753716903081,0.04828,118520.0,118510.0,0.72974498]
[1753716903770,0.04828,118520.0,118510.0,0.70921348]
[1753716903979,0.04828,118520.0,118510.0,0.72984715]
[1753716904879,0.04828,118520.0,118510.0,0.69966043]
[1753716906875,0.04828,118520.0,118510.0,0.69990338]
[1753716907082,0.47875604,118520.0,118510.0,0.69990338]
[1753716907287,0.67802604,118520.0,118510.0,0.69990338]
[1753716907782,0.78669604,118520.0,118510.0,0.69990338]
[1753716908081,0.90533604,118520.0,118510.0,0.69990338]
[1753716910680,0.90533604,118520.0,118510.0,0.69990341]
[1753716913286,0.90533604,118520.0,118510.0,0.67848341]
[1753716916580,0.90533604,118520.0,118510.0,1.09439341]
[1753716916888,0.90533604,118520.0,118510.0,1.21120341]
[1753716917787,1.07408264,118520.0,118510.0,1.21120341]
[1753716918586,1.07408264,118520.0,118510.0,0.9950748]
[1753716918587,1.52000723,118520.0,118510.0,0.9950748]
[1753716918788,1.52000723,118520.0,118510.0,0.3089548]
[1753716918989,2.02000723,118520.0,118510.0,0.3089548]
[1753716919589,2.02000723,118520.0,118510.0,0.28718992]
[1753716919788,2.02000723,118520.0,118510.0,0.2421435]
[1753716919988,2.02000723,118520.0,118510.0,0.05110176]
[1753716920284,2.02000723,118520.0,118510.0,0.24253245]
[1753716920489,2.02000723,118520.0,118510.0,0.07377165]
[1753716920684,2.02000723,118520.0,118510.0,0.05110176]
[1753716920886,0.6436208,118510.0,118500.0,0.07527242]
[1753716921090,1.77558539,118510.0,118500.0,0.030226]
[1753716921980,0.639155,118500.0,118490.0,0.23342145]
[1753716922191,1.08507959,118500.0,118490.0,0.23342145]
[1753716922493,0.3630193,118490.0,118480.0,0.15318979]
[1753716922791,0.3630193,118490.0,118480.0,0.27693687]
[1753716922792,1.09021132,118490.0,118480.0,0.27693687]
[1753716923893,1.09021132,118490.0,118480.0,0.210993]
[1753716924290,1.50484138,118490.0,118480.0,0.210993]
[1753716924489,1.07436534,118490.0,118480.0,0.210993]
[1753716924794,1.57436534,118490.0,118480.0,0.210993]
[1753716926093,2.00484138,118490.0,118480.0,0.210993]
[1753716926295,2.00684138,118490.0,118480.0,0.23309098]
[1753716926495,1.57636534,118490.0,118480.0,0.23309098]
[1753716927497,1.57636534,118490.0,118480.0,0.02209798]
[1753716927691,0.3630335,118480.0,118470.0,1.07090749]
[1753716927891,1.50485558,118480.0,118470.0,0.33776749]
[1753716928395,2.19081558,118480.0,118470.0,0.3192043]
[1753716928585,2.19081558,118480.0,118470.0,0.2770013]
[1753716928991,1.76033954,118480.0,118470.0,0.3938113]
[1753716929296,2.26033954,118480.0,118470.0,0.3938113]
[1753716929596,2.26033954,118480.0,118470.0,0.2770013]
[1753716929794,2.26033954,118480.0,118470.0,0.0659938]
[1753716930094,0.6439178,118470.0,118460.0,1.0559659]
[1753716930297,1.07439384,118470.0,118460.0,1.0559659]
[1753716930498,1.07439384,118470.0,118460.0,0.5277759]
[1753716930689,1.07439384,118470.0,118460.0,1.2136959]
[1753716931090,1.07439384,118470.0,118460.0,1.1714883]
[1753716931790,1.07439384,118470.0,118460.0,0.23600838]
[1753716932594,1.07439384,118470.0,118460.0,0.23601968]
[1753716932902,1.57439384,118470.0,118460.0,0.03985419]
[1753716934105,1.57439384,118470.0,118460.0,0.02045181]
[1753716934492,0.202032,118460.0,118450.0,0.2110458]
[1753716934698,1.07440804,118460.0,118450.0,0.25055837]
[1753716934903,1.76024804,118460.0,118450.0,0.03951257]
[1753716935295,1.76024804,118460.0,118450.0,0.18791688]
[1753716935601,0.4751,118450.0,118430.0,0.2533999]
[1753716935900,1.07443654,118440.0,118430.0,1.23439724]
[1753716936101,1.07443654,118440.0,118430.0,0.32326724]
[1753716936395,1.07443654,118440.0,118430.0,0.28104874]
[1753716936601,1.07443654,118440.0,118430.0,0.32826874]
[1753716937001,1.07443654,118440.0,118430.0,0.35564154]
[1753716937502,1.07443654,118440.0,118430.0,0.37477458]
[1753716937691,1.57443654,118440.0,118430.0,0.37477458]
[1753716938100,1.57443654,118440.0,118430.0,0.37877458]
[1753716938604,1.57443654,118440.0,118430.0,0.41174458]
[1753716939411,1.57443654,118440.0,118430.0,0.47777908]
[1753716939903,1.57443654,118440.0,118430.0,0.25528754]
[1753716940201,1.57443654,118440.0,118430.0,0.02323304]
[1753716940400,2.00491258,118440.0,118430.0,0.04389222]
[1753716940902,1.57443654,118440.0,118430.0,0.31843222]
[1753716941402,2.00591258,118440.0,118430.0,0.21291222]
[1753716941602,2.00591258,118440.0,118430.0,0.04689222]
[1753716941800,2.00591258,118440.0,118430.0,0.04289222]
[1753716941990,2.00591258,118440.0,118430.0,0.04489222]
[1753716942191,2.00491258,118440.0,118430.0,0.04189222]
[1753716942391,2.00491258,118440.0,118430.0,0.02123304]
[1753716942595,2.00491258,118440.0,118430.0,0.02223304]
[1753716942803,2.00491258,118440.0,118430.0,0.19110784]
[1753716943103,2.00491258,118440.0,118430.0,0.02223304]
[1753716944405,2.00491258,118440.0,118430.0,0.19110784]
[1753716944595,2.00491258,118440.0,118430.0,0.48630744]
[1753716944901,2.00491258,118440.0,118430.0,0.21176744]
[1753716944902,0.9751,118440.0,118430.0,0.21176744]
[1753716945108,1.57443654,118440.0,118430.0,0.50772744]
[1753716945801,1.40557604,118440.0,118430.0,0.48630744]
[1753716946002,0.04861,118440.0,118430.0,0.93820348]
[1753716946197,0.50124604,118470.0,118460.0,0.168832]
[1753716946504,0.19423,118470.0,118460.0,1.216782]
[1753716946700,0.62470604,118480.0,118470.0,0.4282778]
[1753716946908,0.69547604,118480.0,118470.0,0.5310078]
[1753716947093,0.86427954,118480.0,118470.0,0.5310078]
[1753716948207,1.07437954,118480.0,118470.0,0.5310078]
[1753716948501,1.07437954,118480.0,118470.0,0.4955878]
[1753716948910,1.07637954,118480.0,118470.0,0.4955878]
[1753716950103,1.08037954,118480.0,118470.0,0.4955878]
[1753716950297,1.08037954,118480.0,118470.0,0.51631101]
[1753716953108,1.08037954,118480.0,118470.0,0.51631101]
[1753716953407,1.51085558,118480.0,118470.0,0.13724321]
[1753716953713,1.51085558,118480.0,118470.0,0.02072321]
[1753716953915,1.52617063,118480.0,118470.0,0.02072321]
[1753716954210,1.52617063,118480.0,118470.0,0.18954101]
[1753716954416,2.02617063,118480.0,118470.0,0.18954101]
[1753716959815,1.59569459,118480.0,118470.0,0.18954101]
[1753716960013,1.59569459,118480.0,118470.0,0.32644101]
[1753716960217,1.58037954,118480.0,118470.0,0.32644101]
[1753716960812,2.01085558,118480.0,118470.0,0.18954101]
[1753716961122,2.0261793,118480.0,118470.0,0.18954101]
[1753716961511,2.7115393,118480.0,118470.0,0.18954101]
[1753716961711,2.7115393,118480.0,118470.0,0.02072321]
[1753716962013,2.7115393,118480.0,118470.0,0.18954101]
[1753716962409,2.7115393,118480.0,118470.0,0.02072321]
[1753716962718,2.7115393,118480.0,118470.0,0.18954101]
[1753716963014,2.7115393,118480.0,118460.0,0.1266196]
[1753716963015,0.6398578,118470.0,118460.0,0.2532393]
[1753716963219,1.07033384,118470.0,118460.0,0.2532393]
[1753716963419,0.90151604,118470.0,118460.0,0.5727293]
[1753716963725,1.07033384,118470.0,118460.0,0.5727293]
[1753716964218,1.07033384,118470.0,118460.0,0.1688247]
[1753716965409,1.40151604,118470.0,118460.0,0.3511547]
[1753716965609,1.32657604,118470.0,118460.0,0.4883147]
[1753716965809,0.502,118470.0,118460.0,1.60403074]
[1753716966010,0.502,118470.0,118460.0,1.66957767]
[1753716966411,0.55162,118470.0,118460.0,1.23910163]
[1753716966721,0.05162,118470.0,118460.0,1.23910163]
[1753716967521,0.21132,118470.0,118460.0,1.23910163]
[1753716967720,0.21232,118470.0,118460.0,1.23910163]
[1753716968115,0.82757604,118470.0,118460.0,1.23910163]
[1753716968320,0.90251604,118470.0,118460.0,1.23910163]
[1753716969124,0.90351604,118470.0,118460.0,1.23910163]
[1753716970326,0.90351604,118470.0,118460.0,1.28414805]
[1753716970627,0.90351604,118470.0,118460.0,1.23910163]
[1753716971229,0.90351604,118470.0,118460.0,1.28414805]
[1753716971427,1.07233384,118470.0,118460.0,1.00639805]
[1753716971622,1.07133384,118470.0,118460.0,1.09825163]
[1753716971928,1.07233384,118470.0,118460.0,1.09825163]
[1753716972428,1.07233384,118470.0,118460.0,0.41313163]
[1753716972628,1.07233384,118470.0,118460.0,1.09821163]
[1753716973226,1.07233384,118470.0,118460.0,0.88403163]
[1753716973432,1.07233384,118470.0,118460.0,0.95134163]
[1753716973631,1.07233384,118470.0,118460.0,1.02093163]
[1753716973828,0.90351604,118470.0,118460.0,1.02093163]
[1753716974030,1.07233384,118470.0,118460.0,1.02093163]
[1753716974231,1.07233384,118470.0,118460.0,1.06597805]
[1753716975138,1.07233384,118470.0,118460.0,0.91972505]
[1753716975732,1.07233384,118470.0,118460.0,1.05662505]
[1753716976030,0.607552,118460.0,118450.0,0.03025642]
[1753716976231,0.3536263,118450.0,118440.0,0.97175932]
[1753716976528,1.08585634,118450.0,118440.0,1.14050932]
[1753716977134,1.08585634,118450.0,118440.0,0.56081932]
[1753716977334,1.08585634,118450.0,118440.0,1.24577932]
[1753716977943,1.08685634,118450.0,118440.0,1.24577932]
[1753716980047,1.08685634,118450.0,118440.0,1.2155229]
[1753716980250,1.08685634,118450.0,118440.0,0.9733129]
[1753716980449,1.07136234,118450.0,118440.0,1.1102129]
[1753716981955,1.07136234,118450.0,118440.0,1.1112129]
[1753716984856,1.07136234,118450.0,118440.0,0.5339429]
[1753716985155,1.07136234,118450.0,118440.0,1.2188229]
[1753716985849,1.07136234,118450.0,118440.0,0.2793829]
[1753716986046,1.07136234,118450.0,118440.0,0.8969529]
[1753716986453,1.07136234,118450.0,118440.0,0.8969129]
[1753716986853,1.07136234,118450.0,118440.0,1.0324029]
[1753716987056,1.07136234,118450.0,118440.0,0.3475629]
[1753716987848,1.07136234,118450.0,118440.0,0.5715229]
[1753716987849,0.47204,118450.0,118440.0,0.5715229]
[1753716988151,0.90251604,118450.0,118440.0,0.5920761]
[1753716988346,0.04883,118470.0,118460.0,0.492862]
[1753716988547,0.4212,118480.0,118470.0,0.3573578]
[1753716988750,0.4212,118480.0,118470.0,0.561041]
[1753716988751,0.85167604,118480.0,118470.0,0.561041]
[1753716989853,0.85167604,118480.0,118470.0,0.5404878]
[1753716990156,1.02047954,118480.0,118470.0,0.5404878]
[1753716990358,0.85167604,118480.0,118470.0,0.5404878]
[1753716990657,0.90050604,118480.0,118470.0,0.56111732]
[1753716990857,0.90450604,118480.0,118470.0,0.56111732]
[1753716991258,1.07330954,118480.0,118470.0,0.56111732]
[1753716991557,0.90050604,118480.0,118470.0,0.56111732]
[1753716991758,0.90550604,118480.0,118470.0,0.56211732]
[1753716992552,1.07730954,118480.0,118470.0,0.56211732]
[1753716993859,0.6468335,118480.0,118470.0,0.56211732]
[1753716994062,1.07730954,118480.0,118470.0,1.24671732]
[1753716994360,0.6468335,118480.0,118470.0,1.24671732]
[1753716994663,1.07730954,118480.0,118470.0,1.24671732]
[1753716995362,0.90850604,118480.0,118470.0,1.24671732]
[1753716995561,0.008,118480.0,118470.0,1.67719336]
[1753716995761,0.008,118480.0,118470.0,1.70744978]
[1753716996163,0.008,118480.0,118470.0,1.75268268]
[1753716996660,0.006,118480.0,118470.0,1.70744978]
[1753716997062,0.005,118480.0,118470.0,1.70744978]
[1753716997251,1.11839524,118500.0,118490.0,0.5404593]
[1753716997455,1.07620144,118500.0,118490.0,1.24560882]
[1753716997962,1.07620144,118500.0,118490.0,1.262893]
[1753716998364,1.57620144,118500.0,118490.0,1.262893]
[1753716998565,1.40742604,118500.0,118490.0,1.262893]
[1753716999265,0.50692,118500.0,118490.0,1.262893]
[1753716999564,0.50692,118500.0,118490.0,1.69336904]
[1753716999766,0.00692,118500.0,118490.0,1.72362546]
[1753717000154,0.47003,118520.0,118510.0,0.5404308]
[1753717000356,0.47003,118520.0,118510.0,1.24542032]
[1753717000357,0.90050604,118520.0,118510.0,1.24542032]
[1753717000868,1.06925264,118520.0,118510.0,1.24542032]
[1753717001360,1.56925264,118520.0,118510.0,1.3127016]
[1753717001663,1.57425264,118520.0,118510.0,1.3127016]
[1753717001862,0.505,118520.0,118510.0,1.49999764]
[1753717002065,0.505,118520.0,118510.0,1.65807228]
[1753717002466,0.505,118520.0,118510.0,1.22759624]
[1753717002658,0.72088,118520.0,118510.0,1.22759624]
[1753717002965,0.47503,118520.0,118510.0,1.22759624]
[1753717003164,0.47503,118520.0,118510.0,1.2050116]
[1753717003366,0.47503,118520.0,118510.0,1.22759624]
[1753717004167,0.47503,118520.0,118510.0,1.2050116]
[1753717005659,0.47903,118520.0,118510.0,1.2060116]
[1753717006066,0.009,118520.0,118510.0,1.6366922]
[1753717006275,0.009,118520.0,118510.0,1.65920298]
[1753717006565,0.004,118520.0,118510.0,1.65920298]
[1753717007666,0.62043604,118520.0,118510.0,0.65205694]
[1753717007865,1.07325264,118520.0,118510.0,1.16841614]
[1753717008067,1.07325264,118520.0,118510.0,1.09115616]
[1753717008270,1.07325264,118520.0,118510.0,1.20697616]
[1753717009165,1.07325264,118520.0,118510.0,0.35409536]
[1753717009372,1.07325264,118520.0,118510.0,1.03809536]
[1753717009574,1.50372868,118520.0,118510.0,0.08911536]
[1753717009874,1.07325264,118520.0,118510.0,0.75228128]
[1753717010374,1.07325264,118520.0,118510.0,0.685]
[1753717010375,1.57325264,118520.0,118510.0,0.685]
[1753717010675,1.57325264,118520.0,118510.0,0.8537608]